[Event "7th Sharjah Masters 2024"]
[Site "Sharjah"]
[Date "2024.05.17"]
[Round "4.42"]
[White "Can, Emre"]
[Black "Avila Pavas, Santiago"]
[Result "1-0"]
[ECO "B12"]
[WhiteElo "2549"]
[BlackElo "2516"]
[Annotator "TA"]
[PlyCount "123"]
[EventDate "2024.05.13"]
[EventType "swiss"]
[EventCountry "UAE"]
[SourceTitle "playchess.com"]
[Source "ChessBase"]
[SourceQuality "1"]
[TimeControl "5400+30"]

{[%evp 9,123,16,8,11,23,7,10,0,0,0,0,0,12,31,20,16,31,0,15,0,41,35,39,45,110,93,85,50,52,35,37,36,32,37,52,0,0,-83,2,-5,41,46,39,74,151,30,63,48,133,31,8,35,128,148,162,10,41,0,18,0,52,55,56,56,76,0,123,143,487,487,414,371,1016,1068,1109,1109,1109,1109,1089,491,535,388,586,379,497,634,627,646,584,584,573,567,543,587,465,590,594,576,909,907,920,908,1757,1728,1701,1671,2061,1602,29940,9875,29983,29984,29984,29985,29985,29986]} 1. e4 {[%emt 1:31:00]} c6 {[%emt 1:31:00]} 2. d4 {[%emt 0:00:30]} d5 {[%emt 0:00:30]} 3. e5 {[%emt 0:00:30]} Bf5 {[%emt 0:00:30]} 4. h4 {[%emt 0:00:30]} h5 {[%emt 0:00:30]} 5. Bd3 {[%emt 0:00:30]} Bxd3 {[%emt 0:00:30]} 6. Qxd3 {[%emt 0:00:30][%cal Oe5e6]} Qa5+ {[%emt 0:00:30]} 7. Nd2 {[%emt 0:00:30][%cal Oe5e6]} e6 {[%emt 0:00:30]} 8. Ngf3 {[%emt 0:00:30] The position is equal.} Qa6 {[%emt 0:00:30]} 9. c4 {[%emt 0:00:30]} Bb4 {[%emt 0:00:30]} 10. b3 {[%emt 0:00:30]} Nd7 {[%emt 0:00:30]} 11. O-O {[%emt 0:00:30]} Ne7 {[%emt 0:00:30]} 12. Rd1 {[%emt 0:00:30]} Nf5 {[%emt 0:00:30]} 13. a4 {[%emt 0:00:30]} Rd8 {[%emt 0:00:30]} 14. Nf1 {[%emt 0:00:30]} Be7 {[%emt 0:00:30]} 15. Bg5 {[%emt 0:00:30]} Bxg5 $1 {[%emt 0:00:30]} 16. hxg5 {[%emt 0:00:30]} dxc4 {[%emt 0:00:30]} (16... Nf8 $14) 17. bxc4 $16 {[%emt 0:00:30]} Nf8 {[%emt 0:00:30][%cal Of5d4]} 18. Rab1 {[%emt 0:00:30]} Ng6 {[%emt 0:00:30][%cal Oe8g8]} 19. Qb3 {[%emt 0:00:30]} O-O {[%emt 0:00:30]} 20. Ne3 {[%emt 0:00:30]} (20. Qxb7 Qxc4 21. Ne3 Nxe3 (21... Qxa4 22. Nxf5 exf5 23. Rbc1 $14) 22. fxe3 Qxa4 $16) 20... Nxe3 {[%emt 0:00:30]} 21. fxe3 {[%emt 0:00:30]} b6 {[%emt 0:00:30]} 22. Kf2 {[%emt 0:00:30]} (22. Qc2 $14) 22... c5 $11 {[%emt 0:00:30]} 23. Qb5 {[%emt 0:00:30]} (23. Rh1 $11) 23... Qc8 {[%emt 0:00:30]} (23... Qb7 $17 24. a5 Qe4 25. axb6 axb6 26. Qxb6 cxd4 27. exd4 Qg4) 24. a5 {[%emt 0:00:30]} Rd7 {[%emt 0:00:30]} (24... bxa5 $11 {should be considered.} 25. dxc5 (25. Qxc5 $2 Qxc5 26. dxc5 Rxd1 $19) 25... a4) 25. dxc5 $14 {[%emt 0:00:30]} Rxd1 {[%emt 0:00:30]} 26. Rxd1 {[%emt 0:00:30]} bxc5 {[%emt 0:00:30]} ({Black should play} 26... Qxc5 27. Qxc5 bxc5) 27. Rd7 {[%emt 0:00:30]} (27. a6 $1 $16) 27... a6 $11 {[%emt 0:00:30] Black is weak on the dark squares} 28. Qb7 {[%emt 0:00:30]} Qe8 {[%emt 0:00:30]} (28... Qxb7 $14 29. Rxb7 Ra8) 29. Rd2 {[%emt 0:00:30] White is much more active.} (29. Kg3 $16) 29... Qb8 {[%emt 0:00:30]} 30. Rb2 {[%emt 0:00:30]} Qd8 {[%emt 0:00:30]} (30... Qe8 $14) 31. Qxa6 $16 {[%emt 0:00:30]} Qd3 {[%emt 0:00:30]} 32. Qd6 $2 {[%emt 0:00:30]} (32. Qb7 $18) 32... Qa3 {[%emt 0:00:30]} 33. Qd2 {[%emt 0:00:30]} (33. Rb5 {looks sharper.} Qa2+ 34. Nd2 Nxe5 35. Rb8) 33... Qa4 {[%emt 0:00:30]} 34. Qc3 {[%emt 0:00:30]} Ra8 {[%emt 0:00:30]} ({Better is} 34... Rd8 $11) 35. Rb5 $36 {[%emt 0:00:30][%mdl 2048] White is more active.} Qa2+ {[%emt 0:00:30]} 36. Kg3 {[%emt 0:00:30][%cal Og3h2]} h4+ {[%emt 0:00:30]} 37. Kh2 {[%emt 0:00:30]} (37. Nxh4 Nxh4 38. Kxh4 Qxg2 $17) (37. Kh3 $1 $16) 37... Rd8 {[%emt 0:00:30]} (37... Kh7 $1 $11 {remains equal.}) 38. Qb2 {[%emt 0:00:30]} (38. Rxc5 $2 Rd1 39. Rc8+ Kh7 $19) 38... Qxc4 {[%emt 0:00:30][%mdl 8192] This move loses the game for Black.} (38... Qxb2 $16 39. Rxb2 Rd3) 39. Rb8 $1 $18 {[%emt 0:00:30]} Rxb8 {[%emt 0:00:30]} 40. Qxb8+ {[%emt 0:00:30][%mdl 4096] Endgame. KQN-KQN} Kh7 $2 (40... Nf8 41. g6 fxg6) 41. Qb7 $1 {[%emt 0:00:30]} Qg4 {[%emt 0:01:00]} 42. a6 $1 {[%emt 0:00:30]} (42. Qxf7 c4 43. Ng1 Qxg5 $11 (43... Nxe5 44. Qf4 $14)) 42... Qg3+ {[%emt 0:00:30]} 43. Kh1 {[%emt 0:00:30]} h3 {[%emt 0:00:30]} 44. Ng1 {[%emt 0:00:30]} (44. gxh3 $142 Qxh3+ 45. Kg1 Qg4+ 46. Kf2) 44... Nxe5 {[%emt 0:00:30] ( -> ...Ng4)} (44... Qxe5 $2 45. a7 (45. gxh3 Qxe3 46. a7 Ne5 $18) (45. Qxf7 hxg2+ 46. Kxg2 Qxg5+ 47. Kf1 Qxe3 $11) 45... hxg2+ 46. Qxg2) (44... hxg2+ $2 45. Qxg2 Qxe3 46. a7 Qxe5 47. a8=Q (47. a8=B Kg8 $17)) 45. Qe4+ {[%emt 0:00:30]} g6 {[%emt 0:00:30]} 46. gxh3 {[%emt 0:00:30] Strongly threatening a7.} (46. Nxh3 Ng4 47. Qf4 Qe1+ 48. Ng1 Qh4+ 49. Nh3 Qe1+ 50. Ng1 Qh4+ 51. Nh3 Qe1+ $11) 46... c4 {[%emt 0:00:30][%cal Oe5d3] And now ...Nd3! would win.} 47. Qf4 {[%emt 0:00:30]} (47. a7 Nd3 48. Qf3 Nf2+ $11 (48... Qxg5 49. Qxf7+ Kh6 50. a8=Q Qd5+ 51. Qxd5) (48... Qxg5 49. Qxf7+ Kh6 50. a8=Q)) 47... Qxf4 {[%emt 0:00:30]} 48. exf4 {[%emt 0:00:30] KN-KN} Nc6 {[%emt 0:00:30]} 49. Ne2 {[%emt 0:00:30]} Kg7 {[%emt 0:00:30]} 50. Kg2 {[%emt 0:00:30]} Kf8 {[%emt 0:00:30]} 51. Kf3 {[%emt 0:00:30]} Ke7 {[%emt 0:00:30]} 52. Ke3 {[%emt 0:00:30]} Kd6 {[%emt 0:00:30] [#]} 53. Nd4 $1 {[%emt 0:00:30]} Na7 {[%emt 0:00:30] [#]} 54. Nf3 $1 {[%emt 0:00:30]} Kc5 {[%emt 0:00:30]} 55. Ne5 {[%emt 0:00:30]} Kb4 {[%emt 0:00:30]} 56. Nxf7 {[%emt 0:00:30]} c3 {[%emt 0:00:30][%cal Bc4c3,Bc3c2][%mdl 32]} 57. Ne5 {[%emt 0:00:30]} Kb3 {[%emt 0:00:30]} 58. Nd3 {[%emt 0:00:30] h4 is the strong threat.} (58. Nxg6 $2 {too greedy.} c2 59. Ke4 (59. Kd2 $2 Kb2 $19) 59... c1=Q $19 (59... c1=R 60. Ke5 $16)) 58... Kc2 {[%emt 0:00:30]} 59. h4 {[%emt 0:00:30][%cal Bh3h4,Bh4h5,Bh5g6,Bg6g7][%mdl 32] Intending h5! and mate.} Kb1 {[%emt 0:00:30] [#]} 60. h5 $1 {[%emt 0:00:30][%mdl 512] White mates.} c2 {[%emt 0:00:30]} (60... Nc6 61. h6) 61. hxg6 {[%emt 0:00:30]} Nc6 {[%emt 0:00:30]} 62. g7 {[%emt 0:00:30] Weighted Error Value: White=0.32/Black=0.48.  Loses game:     	---       	Black=1      Mistake:       	White=6     	Black=9      Inaccurate:     	White=2     	Black=3      OK:         	White=9     	Black=16     Best:        	White=4     	Black=5      Strong:       	White=4     	Black=1} 1-0

[Event "7th Sharjah Masters 2024"]
[Site "Sharjah"]
[Date "2024.05.17"]
[Round "4.43"]
[White "Cardoso Cardoso, Jose Gabriel"]
[Black "Klimkowski, Jan"]
[Result "1-0"]
[ECO "C79"]
[WhiteElo "2497"]
[BlackElo "2518"]
[Annotator "ChessBase"]
[PlyCount "227"]
[EventDate "2024.05.13"]
[EventType "swiss"]
[EventCountry "UAE"]
[SourceTitle "playchess.com"]
[Source "ChessBase"]
[SourceQuality "1"]
[TimeControl "5400+30"]

1. e4 {[%emt 1:31:00]} e5 {[%emt 1:31:00]} 2. Nf3 {[%emt 0:00:30]} Nc6 {[%emt 0:00:30]} 3. Bb5 {[%emt 0:00:30]} a6 {[%emt 0:00:30]} 4. Ba4 {[%emt 0:00:30]} d6 {[%emt 0:00:30]} 5. O-O {[%emt 0:00:30]} Nf6 {[%emt 0:00:30]} 6. Re1 {[%emt 0:00:30]} Bd7 {[%emt 0:00:30]} 7. c3 {[%emt 0:00:30]} g6 {[%emt 0:00:30]} 8. d4 {[%emt 0:00:30]} Bg7 {[%emt 0:00:30]} 9. h3 {[%emt 0:00:30]} O-O {[%emt 0:00:30]} 10. Bc2 {[%emt 0:00:30]} Re8 {[%emt 0:00:30]} 11. Nbd2 {[%emt 0:00:30]} a5 {[%emt 0:00:30]} 12. Nf1 {[%emt 0:00:30]} a4 {[%emt 0:00:30]} 13. a3 {[%emt 0:00:30]} b5 {[%emt 0:00:30]} 14. Ng3 {[%emt 0:00:30]} Na5 {[%emt 0:00:30]} 15. Rb1 {[%emt 0:00:30]} c5 {[%emt 0:00:30]} 16. d5 {[%emt 0:00:30]} Qe7 {[%emt 0:00:30]} 17. Nh2 {[%emt 0:00:30]} h5 {[%emt 0:00:30]} 18. Bg5 {[%emt 0:00:30]} Qf8 {[%emt 0:00:30]} 19. Bd3 {[%emt 0:00:30]} Nh7 {[%emt 0:00:30]} 20. Be3 {[%emt 0:00:30]} Bh6 {[%emt 0:00:30]} 21. Qd2 {[%emt 0:00:30]} Nb3 {[%emt 0:00:30]} 22. Qe2 {[%emt 0:00:30]} c4 {[%emt 0:00:30]} 23. Bc2 {[%emt 0:00:30]} Nc5 {[%emt 0:00:30]} 24. Nf3 {[%emt 0:00:30]} Bf4 {[%emt 0:00:30]} 25. Qd2 {[%emt 0:00:30]} Qh6 {[%emt 0:00:30]} 26. Bxf4 {[%emt 0:00:30]} Qxf4 {[%emt 0:00:30]} 27. Qxf4 {[%emt 0:00:30]} exf4 {[%emt 0:00:30]} 28. Ne2 {[%emt 0:00:30]} Nxe4 {[%emt 0:00:30]} 29. Nxf4 {[%emt 0:00:30]} Nc5 {[%emt 0:00:30]} 30. h4 {[%emt 0:00:30]} Nf6 {[%emt 0:00:30]} 31. Nd4 {[%emt 0:00:30]} Na6 {[%emt 0:00:30]} 32. f3 {[%emt 0:00:30]} Nc7 {[%emt 0:00:30]} 33. Red1 {[%emt 0:00:30]} Re5 {[%emt 0:00:30]} 34. Rd2 {[%emt 0:00:30]} Rae8 {[%emt 0:00:30]} 35. Rbd1 {[%emt 0:00:30]} Ncxd5 {[%emt 0:00:30]} 36. Nxd5 {[%emt 0:00:30]} Rxd5 {[%emt 0:00:30]} 37. Kf2 {[%emt 0:00:30]} Rde5 {[%emt 0:00:30]} 38. Bb1 {[%emt 0:00:30]} d5 {[%emt 0:00:30]} 39. Rh1 {[%emt 0:00:30]} Kf8 {[%emt 0:00:30]} 40. Bc2 {[%emt 0:00:30]} R8e7 {[%emt 0:00:30]} 41. Bd1 {[%emt 0:00:30]} Ke8 {[%emt 0:00:30]} 42. Be2 {[%emt 0:00:30]} Kd8 {[%emt 0:00:30]} 43. Rhd1 {[%emt 0:00:30]} Kc7 {[%emt 0:00:30]} 44. Bf1 {[%emt 0:00:30]} Kb6 {[%emt 0:00:30]} 45. Rc1 {[%emt 0:00:30]} Re8 {[%emt 0:00:30]} 46. Nc2 {[%emt 0:00:30]} Bc6 {[%emt 0:00:30]} 47. Rcd1 {[%emt 0:00:30]} Bb7 {[%emt 0:00:30]} 48. Rd4 {[%emt 0:00:30]} Nd7 {[%emt 0:00:30]} 49. Rf4 {[%emt 0:00:30]} R8e7 {[%emt 0:00:30]} 50. Nb4 {[%emt 0:00:30]} Nc5 {[%emt 0:00:30]} 51. g3 {[%emt 0:00:30]} Nb3 {[%emt 0:00:30]} 52. Rf6+ {[%emt 0:00:30]} R5e6 {[%emt 0:00:30]} 53. Rf4 {[%emt 0:00:30]} Rd6 {[%emt 0:00:30]} 54. Nc2 {[%emt 0:00:30]} Nc5 {[%emt 0:00:30]} 55. Nd4 {[%emt 0:00:30]} Bc8 {[%emt 0:00:30]} 56. Rd2 {[%emt 0:00:30]} Bd7 {[%emt 0:00:30]} 57. Rd1 {[%emt 0:00:30]} Kc7 {[%emt 0:00:30]} 58. Nc2 {[%emt 0:00:30]} Bc6 {[%emt 0:00:30]} 59. Nd4 {[%emt 0:00:30]} Ne6 {[%emt 0:00:30]} 60. Rf6 {[%emt 0:00:30]} Bd7 {[%emt 0:00:30]} 61. Nxe6+ {[%emt 0:00:30]} Rdxe6 {[%emt 0:00:30]} 62. Rf4 {[%emt 0:00:30]} Bc6 {[%emt 0:00:30]} 63. Rfd4 {[%emt 0:00:30]} f6 {[%emt 0:00:30]} 64. R1d2 {[%emt 0:00:30]} Re1 {[%emt 0:00:30]} 65. Rd1 {[%emt 0:00:30]} Rxd1 {[%emt 0:00:30]} 66. Rxd1 g5 {[%emt 0:00:30]} 67. Be2 {[%emt 0:01:00]} Kd6 {[%emt 0:00:30]} 68. Rd4 {[%emt 0:00:30]} Kc5 {[%emt 0:00:30]} 69. Bd1 {[%emt 0:00:30]} Be8 {[%emt 0:00:30]} 70. Bc2 {[%emt 0:00:30]} Rg7 {[%emt 0:00:30]} 71. Bf5 {[%emt 0:00:30]} Kd6 {[%emt 0:00:30]} 72. Bh3 {[%emt 0:00:30]} Bg6 {[%emt 0:00:30]} 73. Bg2 {[%emt 0:00:30]} Bf5 {[%emt 0:00:30]} 74. f4 {[%emt 0:00:30]} Be6 {[%emt 0:00:30]} 75. Bf3 {[%emt 0:00:30]} Bf7 {[%emt 0:00:30]} 76. Rd1 {[%emt 0:00:30]} Rg8 {[%emt 0:00:30]} 77. Rd2 {[%emt 0:00:30]} Kc5 {[%emt 0:00:30]} 78. Rd1 {[%emt 0:00:30]} Re8 {[%emt 0:00:30]} 79. Rd2 {[%emt 0:00:30]} Kd6 {[%emt 0:00:30]} 80. Rd1 {[%emt 0:00:30]} Rd8 {[%emt 0:00:30]} 81. Rd2 {[%emt 0:00:30]} Ke6 {[%emt 0:00:30]} 82. Re2+ {[%emt 0:00:30]} Kd6 {[%emt 0:00:30]} 83. Rd2 {[%emt 0:00:30]} gxf4 {[%emt 0:00:30]} 84. gxf4 {[%emt 0:00:30]} Ke6 {[%emt 0:00:30]} 85. Bg2 {[%emt 0:00:30]} Bg6 {[%emt 0:00:30]} 86. Bh3+ {[%emt 0:00:30]} Ke7 {[%emt 0:00:30]} 87. Bg2 {[%emt 0:00:30]} Bd3 {[%emt 0:00:30]} 88. Bf3 {[%emt 0:00:30]} d4 {[%emt 0:00:30]} 89. cxd4 {[%emt 0:00:30]} Rxd4 {[%emt 0:00:30]} 90. Ke3 {[%emt 0:00:30]} Rd8 {[%emt 0:00:30]} 91. Bc6 {[%emt 0:00:30]} Rc8 {[%emt 0:00:30]} 92. Bf3 {[%emt 0:00:30]} Rc5 {[%emt 0:00:30]} 93. Rg2 {[%emt 0:00:30]} Kd6 {[%emt 0:00:30]} 94. Rg8 {[%emt 0:00:30]} Ke7 {[%emt 0:00:30]} 95. Kd4 {[%emt 0:00:30]} Rf5 {[%emt 0:00:30]} 96. Ke3 {[%emt 0:00:30]} Rc5 {[%emt 0:00:30]} 97. Kd4 {[%emt 0:00:30]} Rf5 98. Ke3 {[%emt 0:00:30]} Kd6 {[%emt 0:01:00]} 99. Rh8 {[%emt 0:00:30]} Rc5 {[%emt 0:00:30]} 100. Rxh5 {[%emt 0:00:30]} Rxh5 {[%emt 0:00:30]} 101. Bxh5 Bf5 {[%emt 0:00:30]} 102. Kd4 {[%emt 0:01:00]} Ke7 {[%emt 0:00:30]} 103. Bf3 {[%emt 0:00:30]} Bd3 {[%emt 0:00:30]} 104. Bc6 {[%emt 0:00:30]} Be2 {[%emt 0:00:30]} 105. Kc3 {[%emt 0:00:30]} Ke6 {[%emt 0:00:30]} 106. Bxb5 {[%emt 0:00:30]} Kf5 {[%emt 0:00:30]} 107. Bxa4 {[%emt 0:00:30]} Kxf4 {[%emt 0:00:30]} 108. Kd4 {[%emt 0:00:30]} Kg4 {[%emt 0:00:30]} 109. Bc6 {[%emt 0:00:30]} Kxh4 {[%emt 0:00:30]} 110. a4 {[%emt 0:00:30]} Kg5 {[%emt 0:00:30]} 111. a5 {[%emt 0:00:30]} f5 {[%emt 0:00:30]} 112. Bb7 {[%emt 0:00:30]} f4 {[%emt 0:00:30]} 113. a6 {[%emt 0:00:30]} f3 {[%emt 0:00:30]} 114. Ke4 {[%emt 0:00:30]} 1-0

[Event "7th Sharjah Masters 2024"]
[Site "Sharjah"]
[Date "2024.05.17"]
[Round "4.44"]
[White "Suleymenov, Alisher"]
[Black "Samant Aditya S"]
[Result "1/2-1/2"]
[ECO "E48"]
[WhiteElo "2501"]
[BlackElo "2501"]
[Annotator "TA"]
[PlyCount "34"]
[EventDate "2024.05.13"]
[EventType "swiss"]
[EventCountry "UAE"]
[SourceTitle "playchess.com"]
[Source "ChessBase"]
[SourceQuality "1"]
[TimeControl "5400+30"]

{[%evp 11,34,11,7,0,-12,-15,-15,-21,-20,-22,-21,-33,-9,-8,-10,-10,-16,-12,-14,-19,-4,-6,0,-13,8]} 1. d4 {[%emt 0:00:38]} Nf6 {[%emt 0:00:02]} 2. c4 {[%emt 0:00:10]} e6 {[%emt 0:00:07]} 3. Nc3 {[%emt 0:00:06]} Bb4 {[%emt 0:00:06]} 4. e3 {[%emt 0:00:05]} O-O {[%emt 0:00:17]} 5. Bd3 {[%emt 0:00:07]} d5 {[%emt 0:00:30]} 6. cxd5 {[%emt 0:00:06]} exd5 {[%emt 0:00:18]} 7. a3 {[%emt 0:00:05]} Bd6 {[%emt 0:01:19]} 8. Qc2 {[%emt 0:00:20]} c6 {[%emt 0:08:50][%cal Bc7c6,Bc6c5,Bc5c4][%mdl 32]} 9. Nge2 {[%emt 0:01:13]} Re8 {[%emt 0:01:02]} 10. Bd2 {[%emt 0:00:06]} b6 {[%emt 0:03:42]} 11. f3 {[%emt 0:00:56]} c5 {[%emt 0:06:37]} 12. g4 {[%emt 0:00:07] The position is equal.} c4 {[%emt 0:18:35]} 13. Bf5 {[%emt 0:00:05]} Bxf5 {[%emt 0:00:10]} 14. Qxf5 {[%emt 0:00:05][%cal Og4g5] Hoping for g5!} g6 {[%emt 0:00:35]} 15. Qg5 {[%emt 0:00:06][%cal Oe2f4]} Nc6 {[%emt 0:05:46]} 16. Qh4 {[%emt 0:25:31]} Be7 {[%emt 0:03:11][%cal Of6e4] aiming for ...Ne4!} 17. Qf2 {[%emt 0:03:41]} b5 {[%emt 0:13:21] Not much happened in this game.   Weighted Error Value: White=0.02 (flawless) /Black=0.03 (flawless) .  OK:         	White=6     	Black=5      Best:        	---       	Black=2} 1/2-1/2